bitfinex/quotes_BTCUSD_20250916
["timestamp","ask_amount","ask_price","bid_price","bid_amount"]
[1758000927813,0.02602914,115930.0,115920.0,1.24953897]
[1758000928027,0.02602914,115930.0,115920.0,0.8983063]
[1758000928306,0.02909914,115930.0,115920.0,1.24953897]
[1758000928696,0.02602914,115930.0,115920.0,1.24953897]
[1758000930081,0.02602914,115930.0,115920.0,0.8983063]
[1758000930298,0.02602914,115930.0,115920.0,1.24953897]
[1758000933316,0.02602914,115930.0,115920.0,0.8983063]
[1758000933479,0.03119914,115930.0,115920.0,0.8962863]
[1758000933680,0.40599181,115930.0,115920.0,0.8962863]
[1758000934302,0.40599181,115930.0,115920.0,0.8983663]
[1758000935053,0.38243181,115930.0,115920.0,0.8983663]
[1758000937924,0.03119914,115930.0,115920.0,0.8983663]
[1758000938328,0.05475914,115930.0,115920.0,0.8962863]
[1758000939036,0.05475914,115930.0,115920.0,0.8962463]
[1758000940734,0.05475914,115930.0,115920.0,0.8983263]
[1758000941119,0.03119914,115930.0,115920.0,0.8983263]
[1758000944654,0.02602914,115930.0,115920.0,0.8983263]
[1758000944824,0.02908914,115930.0,115920.0,0.8983263]
[1758000945048,0.03119914,115930.0,115920.0,0.8983263]
[1758000945251,0.05475914,115930.0,115920.0,0.8983263]
[1758000946565,0.03119914,115930.0,115920.0,0.8983263]
[1758000947790,0.05475914,115930.0,115920.0,0.7520063]
[1758000947991,0.05475914,115930.0,115920.0,0.8962463]
[1758000948657,0.05475914,115930.0,115920.0,0.3273763]
[1758000948852,0.05475914,115930.0,115920.0,0.4716163]
[1758000952791,0.05475914,115930.0,115920.0,0.8716163]
[1758000959520,0.05475914,115930.0,115920.0,0.8949563]
[1758000960963,0.05475914,115930.0,115920.0,0.8716163]
[1758000962375,0.05475914,115930.0,115920.0,0.8949563]
[1758000962975,0.03119914,115930.0,115920.0,0.8970263]
[1758000964712,0.05600914,115930.0,115920.0,0.8949563]
[1758000966571,0.03119914,115930.0,115920.0,0.8970263]
[1758000966936,0.05600914,115930.0,115920.0,0.8970263]
[1758000967320,0.05600914,115930.0,115920.0,0.8949563]
[1758000967503,0.03119914,115930.0,115920.0,0.8970263]
[1758000968133,0.05600914,115930.0,115920.0,0.8949563]
[1758000969724,0.03119914,115930.0,115920.0,0.8970263]
[1758000970842,0.02602914,115930.0,115920.0,0.8970263]
[1758000974795,0.54056339,115930.0,115920.0,0.15484352]
[1758000975016,0.54056339,115930.0,115920.0,0.29904352]
[1758000976603,0.54056339,115930.0,115920.0,0.4715763]
[1758000976841,0.51575339,115930.0,115920.0,0.4969863]
[1758000977061,0.02602914,115930.0,115920.0,0.4969863]
[1758000978553,0.02895914,115930.0,115920.0,0.4969863]
[1758000979526,0.02602914,115930.0,115920.0,0.4969863]
[1758000980327,0.02602914,115930.0,115920.0,0.8969863]
[1758000986181,0.0004,115970.0,115960.0,0.17247326]
[1758000986400,0.00044701,115970.0,115960.0,1.60066256]
[1758000986632,0.00044701,115970.0,115960.0,2.00916256]
[1758000986842,0.00044701,115970.0,115960.0,1.86496256]
[1758000987052,0.00044701,115970.0,115960.0,1.6970462]
[1758000987265,0.00044701,115970.0,115960.0,1.70569403]
[1758000987475,0.00344701,115970.0,115960.0,1.48110119]
[1758000987693,0.00044701,115970.0,115960.0,2.10533391]
[1758000987920,0.0004,115980.0,115970.0,0.17245839]
[1758000988131,0.0004,115980.0,115970.0,0.73750934]
[1758000988342,0.0004,115980.0,115970.0,1.07750934]
[1758000988712,0.0004,115980.0,115970.0,1.47750934]
[1758000989104,0.0004,115980.0,115970.0,1.47802934]
[1758000990788,0.0004,115980.0,115970.0,1.48202934]
[1758000990994,0.0004,115980.0,115970.0,1.14502934]
[1758000991813,0.0004,115980.0,115970.0,1.51015592]
[1758000992012,0.0104,116000.0,115990.0,0.50967159]
[1758000992211,0.0104,116000.0,115990.0,0.80819511]
[1758000992427,0.0104,116000.0,115990.0,0.82922511]
[1758000992645,0.0104,116000.0,115990.0,1.22922511]
[1758000992878,0.0104,116000.0,115990.0,1.25513521]
[1758000994387,0.0104,116000.0,115990.0,1.25613521]
[1758000995091,0.0104,116000.0,115990.0,1.25605521]
[1758000995292,0.0104,116000.0,115990.0,1.25615521]
[1758000996539,0.0104,116000.0,115990.0,1.26465521]
[1758000999121,0.0104,116000.0,115990.0,1.43213157]
[1758000999322,0.0104,116000.0,115990.0,1.26457521]
[1758000999881,0.0104,116000.0,115990.0,1.30296169]
[1758001000189,0.0104,116000.0,115990.0,1.15740169]
[1758001000391,0.0104,116000.0,115990.0,1.30292169]
[1758001000604,0.0104,116000.0,115990.0,1.30192169]
[1758001001000,0.0104,116000.0,115990.0,1.30392169]
[1758001001604,0.0104,116000.0,115990.0,1.30492169]
[1758001001806,0.0104,116000.0,115990.0,1.65542453]
[1758001002027,0.0104,116000.0,115990.0,1.50990453]
[1758001002435,0.0104,116000.0,115990.0,1.30588169]
[1758001004296,0.0104,116000.0,115990.0,1.29738169]
[1758001005596,0.0104,116000.0,115990.0,1.29734169]
[1758001008125,0.0104,116000.0,115990.0,1.15290169]
[1758001008328,0.0104,116000.0,115990.0,1.29734169]
[1758001009382,0.0104,116000.0,115990.0,1.30584169]
[1758001010820,0.0104,116000.0,115990.0,1.51296169]
[1758001011373,0.0104,116000.0,115990.0,1.36852169]
[1758001011933,0.0104,116000.0,115990.0,1.51292169]
[1758001013210,0.0104,116000.0,115990.0,1.36852169]
[1758001013429,0.0104,116000.0,115990.0,1.51288169]
[1758001014604,0.0104,116000.0,115990.0,1.16237885]
[1758001014821,0.0104,116000.0,115990.0,1.51288169]
[1758001015648,0.0104,116000.0,115990.0,1.50438169]
[1758001017195,0.0104,116000.0,115990.0,1.36002169]
[1758001017402,0.0104,116000.0,115990.0,1.86334453]
[1758001017799,0.0104,116000.0,115990.0,1.51284169]
[1758001018032,0.0104,116000.0,115990.0,1.36852169]
[1758001018242,0.0104,116000.0,115990.0,1.51284169]
[1758001018440,0.0104,116000.0,115990.0,1.48493159]
[1758001018571,0.0104,116000.0,115990.0,1.48693159]
[1758001018977,0.0104,116000.0,115990.0,1.48493159]
[1758001020012,0.0104,116000.0,115990.0,1.34061159]
[1758001020226,0.0104,116000.0,115990.0,1.13442875]
[1758001020438,0.0104,116000.0,115990.0,1.48493159]
[1758001020846,0.0104,116000.0,115990.0,1.48593159]
[1758001021649,0.0104,116000.0,115990.0,1.48589159]
[1758001026478,0.0104,116000.0,115990.0,1.13538875]
[1758001026689,0.0104,116000.0,115990.0,1.48589159]
[1758001027199,0.0104,116000.0,115990.0,1.13538875]
[1758001027411,0.0104,116000.0,115990.0,1.34161159]
[1758001027616,0.0104,116000.0,115990.0,1.48585159]
[1758001033237,0.0104,116000.0,115990.0,1.47735159]
[1758001033456,0.0104,116000.0,115990.0,1.12684875]
[1758001033664,0.0104,116000.0,115990.0,1.47735159]
[1758001036231,0.0104,116000.0,115990.0,1.47771159]
[1758001037127,0.0104,116000.0,115990.0,1.12720875]
[1758001037283,0.0104,116000.0,115990.0,1.47771159]
[1758001038224,0.0104,116000.0,115990.0,1.48621159]
[1758001038369,0.0104,116000.0,115990.0,1.55233505]
[1758001039553,0.0104,116000.0,115990.0,1.40773505]
[1758001039759,0.03848,116000.0,115990.0,1.38670505]
[1758001039936,0.03848,116000.0,115990.0,1.53134505]
[1758001040166,0.0104,116000.0,115990.0,1.55238505]
[1758001041329,0.0104,116000.0,115990.0,1.20188221]
[1758001041542,0.0104,116000.0,115990.0,1.55238505]
[1758001041952,0.0104,116000.0,115990.0,1.54388505]
[1758001044830,0.0104,116000.0,115990.0,1.39924505]
[1758001045129,0.0104,116000.0,115990.0,1.54380505]
[1758001047170,0.0104,116000.0,115990.0,1.55230505]
[1758001048572,0.0104,116000.0,115990.0,0.01415405]
[1758001048573,1.25189947,116000.0,115990.0,0.01415405]
[1758001048788,0.51244352,115980.0,115970.0,0.03648107]
[1758001048990,0.51244352,115980.0,115970.0,0.06361107]
[1758001048991,0.34,115980.0,115970.0,0.06361107]
[1758001049200,0.03683068,116000.0,115980.0,0.17244325]
[1758001049422,0.00196,115990.0,115980.0,0.17244325]
[1758001049618,0.3505,116000.0,115990.0,0.17242865]
[1758001049859,0.52487379,116000.0,115990.0,0.17656352]
[1758001050065,0.52487379,116000.0,115990.0,0.34899217]
[1758001050223,0.52487379,116000.0,115990.0,0.32619217]
[1758001050421,0.87537663,116000.0,115990.0,0.32619217]
[1758001050648,0.87836663,116000.0,115990.0,0.32619217]
[1758001051481,0.88036663,116000.0,115990.0,0.32619217]
[1758001051677,0.88136663,116000.0,115990.0,0.32619217]
[1758001052553,0.89607663,116000.0,115990.0,0.32619217]
[1758001053788,0.96208932,116000.0,115990.0,0.15376352]
[1758001053988,0.89607663,116000.0,115990.0,0.15376352]
[1758001054664,1.24657947,116000.0,115990.0,0.15376352]
[1758001054944,0.89607663,116000.0,115990.0,0.15376352]
[1758001055149,1.24657947,116000.0,115990.0,0.15376352]
[1758001055572,1.24657947,116000.0,115990.0,0.08752352]
[1758001055797,1.33301363,116000.0,115990.0,0.08752352]
[1758001059813,1.25590875,116000.0,115990.0,0.08752352]
[1758001060415,1.27199814,116000.0,115990.0,0.08752352]
[1758001060836,0.17244352,115980.0,115970.0,0.27350107]
[1758001061065,0.48439392,115980.0,115970.0,0.29890459]
[1758001061250,0.50405392,115980.0,115970.0,0.29890459]
[1758001062950,0.58151273,115980.0,115970.0,0.08766459]
[1758001063162,1.2495453,115980.0,115970.0,0.23266459]
[1758001063810,1.2495453,115980.0,115970.0,0.08766459]
[1758001064030,1.2495453,115980.0,115970.0,0.23266459]
[1758001064239,0.86613609,115980.0,115970.0,0.23266459]
[1758001065889,1.17808649,115980.0,115970.0,0.08766459]
[1758001066127,0.86613609,115980.0,115970.0,0.23266459]
[1758001066342,1.17808649,115980.0,115970.0,0.08766459]
[1758001066553,1.17818649,115980.0,115970.0,0.08766459]
[1758001066765,0.86623609,115980.0,115970.0,0.08766459]
[1758001067235,0.53957569,115980.0,115970.0,0.08766459]
[1758001067466,0.85152609,115980.0,115970.0,0.08766459]
[1758001067890,0.86623609,115980.0,115970.0,0.08766459]
[1758001069283,0.84853609,115980.0,115970.0,0.11583459]
[1758001069508,0.53462569,115980.0,115970.0,0.11583459]
[1758001069724,0.84657609,115980.0,115970.0,0.11583459]
[1758001070341,0.84853609,115980.0,115970.0,0.11583459]
[1758001070553,0.84453609,115980.0,115970.0,0.11583459]
[1758001070755,0.84653609,115980.0,115970.0,0.11583459]
[1758001071589,0.84453609,115980.0,115970.0,0.11583459]
[1758001071823,0.84653609,115980.0,115970.0,0.11583459]
[1758001072063,0.84652693,115980.0,115970.0,0.11583459]
[1758001072475,0.84256693,115980.0,115970.0,0.11583459]
[1758001072677,0.84456693,115980.0,115970.0,0.11583459]
[1758001073825,0.53261653,115980.0,115970.0,0.11583459]
[1758001074030,0.84652693,115980.0,115970.0,0.11583459]
[1758001075935,0.84652693,115980.0,115970.0,0.25562459]
[1758001076161,0.84652693,115980.0,115970.0,0.11046459]
[1758001076339,0.85256708,115980.0,115970.0,0.23282459]
[1758001076543,0.93734438,115980.0,115970.0,0.23282459]
[1758001076725,0.85256708,115980.0,115970.0,0.23282459]
[1758001077312,0.85256708,115980.0,115970.0,0.23278459]
[1758001077762,0.85256708,115980.0,115970.0,0.08766459]
[1758001077935,0.85256708,115980.0,115970.0,0.23278459]
[1758001078117,0.85256708,115980.0,115970.0,0.25598459]
[1758001078335,0.85256708,115980.0,115970.0,0.25594459]
[1758001079095,0.85256708,115980.0,115970.0,0.11086459]
[1758001079237,0.85256708,115980.0,115970.0,0.23274459]
[1758001079863,0.54061668,115980.0,115970.0,0.23274459]
[1758001080080,0.85256708,115980.0,115970.0,0.08766459]
[1758001080289,1.16616673,115980.0,115970.0,0.08766459]
[1758001080552,0.87035681,115980.0,115970.0,0.08766459]
[1758001081582,1.26417055,115980.0,115970.0,0.08766459]
[1758001082189,1.26417399,115980.0,115970.0,0.08766459]
[1758001083020,1.18231065,115980.0,115970.0,0.08766459]
[1758001083219,0.85265025,115980.0,115970.0,0.11108459]
[1758001083445,0.85265025,115980.0,115970.0,0.11633459]
[1758001083636,0.85069025,115980.0,115970.0,0.11633459]
[1758001083802,0.85069025,115980.0,115970.0,0.26141459]
[1758001085433,0.85071013,115980.0,115970.0,0.26141459]
[1758001086002,0.85071013,115980.0,115970.0,0.11633459]
[1758001086439,0.85071013,115980.0,115970.0,0.26141459]
[1758001087215,0.85071972,115980.0,115970.0,0.26141459]
[1758001087533,0.85071972,115980.0,115970.0,0.11633459]
[1758001087967,0.85278972,115980.0,115970.0,0.26137459]
[1758001088581,0.85279536,115980.0,115970.0,0.26137459]
[1758001089774,0.8527979,115980.0,115970.0,0.26137459]
[1758001090360,0.8527979,115980.0,115970.0,0.11633459]
[1758001090587,0.8527979,115980.0,115970.0,0.23266459]
[1758001090792,0.83056392,115980.0,115970.0,0.23266459]
[1758001091130,1.390124,115980.0,115970.0,0.08766459]
[1758001091382,1.407834,115980.0,115970.0,0.08766459]
[1758001091589,1.39772484,115980.0,115970.0,0.08766459]
[1758001091934,1.39165848,115980.0,115970.0,0.08766459]
[1758001093094,1.07970808,115980.0,115970.0,0.08766459]
[1758001093502,0.76775768,115980.0,115970.0,0.08766459]
[1758001093652,1.07970808,115980.0,115970.0,0.08766459]
[1758001095436,1.09588766,115980.0,115970.0,0.08766459]
[1758001095717,1.101955,115980.0,115970.0,0.08766459]
[1758001096356,1.101915,115980.0,115970.0,0.08766459]
[1758001099473,1.01548084,115980.0,115970.0,0.08766459]
[1758001100550,0.70353044,115980.0,115970.0,0.08766459]
[1758001100751,1.01547455,115980.0,115970.0,0.08766459]
[1758001100951,1.00076455,115980.0,115970.0,0.08766459]
[1758001101176,1.01547455,115980.0,115970.0,0.08766459]
[1758001102399,1.03050411,115980.0,115970.0,0.08766459]
[1758001103574,1.01547455,115980.0,115970.0,0.08766459]
[1758001104119,1.00076455,115980.0,115970.0,0.08766459]
[1758001104508,1.00076229,115980.0,115970.0,0.08766459]
[1758001105635,1.01547229,115980.0,115970.0,0.08766459]
[1758001106414,1.00940721,115980.0,115970.0,0.08766459]
[1758001106887,1.03966579,115980.0,115970.0,0.08766459]
[1758001107350,0.99169721,115980.0,115970.0,0.08766459]
[1758001107570,0.97552392,115980.0,115970.0,0.08766459]
[1758001108094,0.97536392,115980.0,115970.0,0.08766459]
[1758001108296,0.97536392,115980.0,115970.0,0.11108459]
[1758001111392,0.97834392,115980.0,115970.0,0.08766459]
[1758001111805,1.06477808,115980.0,115970.0,0.08766459]
[1758001111994,1.06179808,115980.0,115970.0,0.08766459]
[1758001113196,1.07948808,115980.0,115970.0,0.00014107]
[1758001113405,1.39143848,115980.0,115970.0,0.00014107]
[1758001113836,1.46368182,115980.0,115970.0,0.00014107]
[1758001114265,0.17248814,115950.0,115940.0,0.02609]
[1758001114446,0.48659854,115950.0,115940.0,0.1106046]
[1758001114651,0.48659854,115950.0,115940.0,0.1157746]
[1758001115083,0.48669854,115950.0,115940.0,0.1126246]
[1758001115698,0.48769854,115950.0,115940.0,0.1106046]
[1758001115901,0.48669854,115950.0,115940.0,0.1106046]
[1758001116110,0.48669854,115950.0,115940.0,0.1157746]
[1758001116217,0.48869854,115950.0,115940.0,0.1106046]
[1758001116650,0.48869854,115950.0,115940.0,0.1126246]
[1758001117085,0.48869854,115950.0,115940.0,0.1157746]
[1758001118150,0.48869854,115950.0,115940.0,0.1126246]
[1758001118359,0.9151327,115950.0,115940.0,0.1126246]
[1758001118787,0.9151327,115950.0,115940.0,0.1106046]
[1758001119428,0.82869854,115950.0,115940.0,0.1106046]
[1758001119838,1.21915166,115950.0,115940.0,0.1157746]
[1758001120046,1.36415166,115950.0,115940.0,0.1157746]
[1758001121549,1.21699166,115950.0,115940.0,0.1157746]
[1758001126170,0.8657899,115950.0,115940.0,0.1157746]
[1758001126377,0.51458814,115950.0,115940.0,0.1157746]
[1758001126781,0.8657899,115950.0,115940.0,0.1157746]
[1758001127932,0.8637899,115950.0,115940.0,0.1157746]
[1758001130183,0.51258814,115950.0,115940.0,0.28827761]
[1758001130403,0.8637899,115950.0,115940.0,0.28827761]
[1758001139124,0.8897155,115950.0,115940.0,0.28827761]
[1758001139346,0.8897155,115950.0,115940.0,0.1157746]
[1758001139551,1.24091726,115950.0,115940.0,0.2604946]
[1758001139692,1.24296726,115950.0,115940.0,0.2604946]
[1758001140949,1.24091726,115950.0,115940.0,0.2604946]
[1758001142974,1.40551726,115950.0,115940.0,0.0876646]
[1758001143491,1.24296726,115950.0,115940.0,0.0876646]
[1758001143694,1.38764726,115950.0,115940.0,0.1166946]
[1758001144060,1.38764726,115950.0,115940.0,0.1114146]
[1758001145650,1.38864726,115950.0,115940.0,0.1114146]
[1758001146797,1.38864726,115950.0,115940.0,0.0876646]
[1758001147242,1.43646829,115950.0,115940.0,0.0876646]
[1758001148509,1.43962829,115950.0,115940.0,0.0876646]
[1758001148933,1.38864726,115950.0,115940.0,0.0876646]
[1758001150798,1.40651726,115950.0,115940.0,0.0876646]
[1758001151037,1.40651726,115950.0,115940.0,0.00014108]
[1758001152036,1.40643726,115950.0,115940.0,0.00014108]
[1758001156532,1.40639726,115950.0,115940.0,0.00014108]
[1758001158058,1.26183726,115950.0,115940.0,0.00014108]
[1758001158283,1.38643726,115950.0,115940.0,0.1166946]
[1758001158496,1.24191726,115950.0,115940.0,0.1166946]
[1758001160618,0.53951374,115950.0,115940.0,0.1166946]
[1758001160858,1.24191726,115950.0,115940.0,0.1166946]
[1758001161489,0.8907155,115950.0,115940.0,0.1166946]
[1758001163012,0.8897155,115950.0,115940.0,0.1166946]
[1758001165532,0.8897155,115950.0,115940.0,0.2612146]
[1758001165903,0.53851374,115950.0,115940.0,0.2612146]
[1758001166108,0.19851374,115950.0,115940.0,0.43371761]
[1758001166326,0.5497155,115950.0,115940.0,0.43371761]
[1758001166581,0.8897155,115950.0,115940.0,0.43371761]
[1758001168483,0.71722736,115950.0,115940.0,0.43371761]
[1758001168693,0.3660256,115950.0,115940.0,0.43371761]
[1758001169309,0.69130176,115950.0,115940.0,0.43371761]
[1758001169934,0.69130176,115950.0,115940.0,0.43471761]
[1758001170336,0.69130176,115950.0,115940.0,0.43571761]
[1758001171268,0.8637899,115950.0,115940.0,0.43571761]
[1758001172631,0.3401,115950.0,115940.0,0.43571761]
[1758001172878,0.69130176,115950.0,115940.0,0.43571761]
[1758001173855,0.8637899,115950.0,115940.0,0.29119761]
[1758001174316,0.8637899,115950.0,115940.0,0.43575761]
[1758001175230,0.8637899,115950.0,115940.0,0.43571761]
[1758001176976,0.8637899,115950.0,115940.0,0.29119761]
[1758001177405,0.8637899,115950.0,115940.0,0.43567761]
[1758001178175,0.86022522,115950.0,115940.0,0.43567761]
[1758001178805,0.33653532,115950.0,115940.0,0.43567761]
[1758001179017,0.68773708,115950.0,115940.0,0.43567761]
[1758001180052,0.68773708,115950.0,115940.0,0.43577761]
[1758001180904,0.33653532,115950.0,115940.0,0.43577761]
[1758001181148,0.68773708,115950.0,115940.0,0.29129761]
[1758001181364,0.33653532,115950.0,115940.0,0.43577761]
[1758001181579,0.35120176,115950.0,115940.0,0.43577761]
[1758001181788,0.92460239,115960.0,115950.0,0.17248814]
[1758001181991,0.88539267,115960.0,115950.0,0.26213166]
[1758001182198,0.88539267,115960.0,115950.0,0.28981166]
[1758001182860,0.85946707,115960.0,115950.0,0.28981166]
[1758001183453,0.85946707,115960.0,115950.0,0.26180352]
[1758001183613,0.85946707,115960.0,115950.0,0.43429166]
[1758001183793,0.85946707,115960.0,115950.0,0.26180352]
[1758001184209,0.85946707,115960.0,115950.0,0.11732352]
[1758001184404,0.85946707,115960.0,115950.0,0.26176352]
[1758001184613,0.85946707,115960.0,115950.0,0.43425166]
[1758001188238,0.85946707,115960.0,115950.0,0.26176352]
[1758001189843,0.51946707,115960.0,115950.0,0.26176352]
[1758001191137,0.51946707,115960.0,115950.0,0.43425166]
[1758001191138,0.85946707,115960.0,115950.0,0.43425166]
[1758001193175,0.51946707,115960.0,115950.0,0.43425166]
[1758001193382,0.51946707,115960.0,115950.0,0.43525166]
[1758001194396,0.85946707,115960.0,115950.0,0.43625166]
[1758001199551,0.88539018,115960.0,115950.0,0.43625166]
[1758001204308,0.88539018,115960.0,115950.0,0.11932352]
[1758001204520,0.88739018,115960.0,115950.0,0.26376352]
[1758001204944,0.88739018,115960.0,115950.0,0.43625166]
[1758001206190,0.88539018,115960.0,115950.0,0.43625166]
[1758001209282,0.88539018,115960.0,115950.0,0.29181166]
[1758001209490,0.37291515,115960.0,115950.0,0.43625166]
[1758001211847,0.06092311,115960.0,115950.0,0.43625166]
[1758001212271,0.035,115960.0,115950.0,0.43625166]
[1758001214147,0.035,115960.0,115950.0,0.77337028]
[1758001214971,0.035,115960.0,115950.0,0.62893028]
[1758001215171,0.035,115960.0,115950.0,0.77337028]
[1758001215620,0.035,115960.0,115950.0,1.17337028]
[1758001216782,0.035,115960.0,115950.0,1.02893028]
[1758001216986,0.035,115960.0,115950.0,1.17333028]
[1758001218835,0.035,115960.0,115950.0,1.02893028]
[1758001219284,0.035,115960.0,115950.0,1.03403955]
[1758001219421,0.035,115960.0,115950.0,1.17843955]
[1758001222924,0.035,115960.0,115950.0,1.20435489]
[1758001223327,0.035,115960.0,115950.0,1.20335489]
[1758001223559,0.035,115960.0,115950.0,1.20235489]
[1758001223915,0.035,115960.0,115950.0,1.20435489]
[1758001224359,0.035,115960.0,115950.0,1.06095489]
[1758001224693,0.035,115960.0,115950.0,1.20535489]
[1758001225535,0.035,115960.0,115950.0,1.20435489]
[1758001225690,0.035,115960.0,115950.0,1.05795489]
[1758001225893,0.035,115960.0,115950.0,1.20535489]
[1758001226100,0.035,115960.0,115950.0,1.20835489]
[1758001226739,0.035,115960.0,115950.0,1.06795489]
[1758001227285,0.035,115960.0,115950.0,1.21235489]
[1758001231191,0.035,115960.0,115950.0,1.06795489]
[1758001231392,0.035,115960.0,115950.0,1.21231489]
[1758001231813,0.035,115960.0,115950.0,1.33565489]
[1758001231985,0.035,115960.0,115950.0,0.89521358]
[1758001233036,0.035,115960.0,115950.0,0.75085358]
[1758001233269,0.035,115960.0,115950.0,0.89521358]
[1758001233867,0.035,115960.0,115950.0,0.75085358]
[1758001234214,0.035,115960.0,115950.0,0.89521358]
[1758001235034,0.035,115960.0,115950.0,1.20720562]
[1758001235253,0.035,115960.0,115950.0,1.21234674]
[1758001237891,0.035,115960.0,115950.0,1.48004674]
[1758001241521,0.035,115960.0,115950.0,1.33568674]
[1758001241952,0.035,115960.0,115950.0,1.37453566]
[1758001242439,0.035,115960.0,115950.0,1.51889566]
[1758001244347,0.035,115960.0,115950.0,1.49298032]
[1758001249405,0.035,115960.0,115950.0,1.34862032]
[1758001249631,0.035,115960.0,115950.0,1.49294032]
[1758001250389,0.035,115960.0,115950.0,1.14209936]
[1758001250619,0.035,115960.0,115950.0,1.49294032]
[1758001251295,0.035,115960.0,115950.0,1.14209936]
[1758001251472,0.035,115960.0,115950.0,1.49294032]
[1758001256000,0.035,115960.0,115950.0,1.14209936]
[1758001256197,0.035,115960.0,115950.0,1.49294032]
[1758001256400,0.035,115960.0,115950.0,1.84378128]
[1758001257737,0.035,115960.0,115950.0,1.49294032]
[1758001258591,0.035,115960.0,115950.0,1.84378128]
[1758001259399,0.035,115960.0,115950.0,1.23429484]
[1758001259606,0.035,115960.0,115950.0,1.93597676]
[1758001260988,0.035,115960.0,115950.0,1.5851358]
[1758001261392,0.035,115960.0,115950.0,1.4408158]
[1758001261724,0.035,115960.0,115950.0,1.5851358]
[1758001262245,0.035,115960.0,115950.0,1.94447676]
[1758001264260,0.035,115960.0,115950.0,2.15167676]
[1758001272346,0.035,115960.0,115950.0,2.14317676]
[1758001275687,0.035,115960.0,115950.0,2.48317676]
[1758001277553,0.035,115960.0,115950.0,2.49163676]
[1758001277763,0.035,115960.0,115950.0,2.34735676]
[1758001278176,0.035,115960.0,115950.0,2.49163676]
[1758001286703,0.035,115960.0,115950.0,2.54163676]
[1758001287319,0.035,115960.0,115950.0,2.63252676]
[1758001287520,0.035,115960.0,115950.0,2.54163676]
[1758001289273,0.035,115960.0,115950.0,2.53313676]
[1758001289858,0.39307941,116000.0,115990.0,0.17242865]
[1758001290088,0.04223845,116000.0,115990.0,0.47047217]
[1758001290289,0.39513941,116000.0,115990.0,0.47047217]
[1758001290554,0.39513941,116000.0,115990.0,0.49300217]
[1758001290720,0.39513941,116000.0,115990.0,0.55902855]
[1758001290971,0.39513941,116000.0,115990.0,0.39235855]
[1758001291210,0.41294643,116000.0,115990.0,0.39235855]
[1758001291423,0.41294643,116000.0,115990.0,0.53659855]
[1758001293874,0.41294643,116000.0,115990.0,0.53759855]
[1758001294563,0.06210547,116000.0,115990.0,0.53759855]
[1758001294766,0.41294643,116000.0,115990.0,0.53759855]
[1758001295128,0.41294643,116000.0,115990.0,0.53859855]
[1758001297827,0.06210547,116000.0,115990.0,0.53859855]
[1758001298057,0.04434547,116000.0,115990.0,0.53859855]
[1758001298267,0.39518643,116000.0,115990.0,0.53859855]
[1758001301282,0.04434547,116000.0,115990.0,0.53859855]
[1758001301588,0.39518643,116000.0,115990.0,0.53859855]
[1758001301993,0.39518643,116000.0,115990.0,0.56112855]
[1758001303833,0.35610197,116000.0,115990.0,0.56112855]
[1758001304268,0.37386197,116000.0,115990.0,0.53855855]
[1758001306295,0.37386197,116000.0,115990.0,0.3661299]
[1758001306296,0.54627576,116000.0,115990.0,0.3661299]
[1758001306503,0.54627576,116000.0,115990.0,0.53855855]
[1758001307270,0.04434547,116000.0,115990.0,0.53855855]
[1758001307465,0.04434547,116000.0,115990.0,0.56611855]
[1758001310762,0.04228547,116000.0,115990.0,0.56611855]
[1758001311869,0.04434547,116000.0,115990.0,0.56611855]
[1758001312233,0.04434547,116000.0,115990.0,0.56310855]
[1758001312429,0.35610197,116000.0,115990.0,0.56310855]
[1758001313100,0.04434547,116000.0,115990.0,0.56310855]
[1758001313308,0.04434547,116000.0,115990.0,0.56611855]
[1758001314701,0.04434547,116000.0,115990.0,0.56104855]
[1758001315692,0.35610197,116000.0,115990.0,0.56104855]
[1758001320807,0.35110197,116000.0,115990.0,0.56104855]
[1758001321682,0.03934547,116000.0,115990.0,0.56104855]
[1758001321887,0.35110197,116000.0,115990.0,0.56104855]
[1758001322266,0.35416197,116000.0,115990.0,0.39435855]
[1758001322485,0.36887197,116000.0,115990.0,0.53851855]
[1758001323290,0.35416197,116000.0,115990.0,0.53851855]
[1758001323488,0.35110197,116000.0,115990.0,0.56101855]
[1758001323692,0.35110197,116000.0,115990.0,0.56308855]
[1758001323937,0.35110197,116000.0,115990.0,0.56604855]
[1758001324468,0.35110197,116000.0,115990.0,0.56101855]
[1758001327379,0.35110197,116000.0,115990.0,0.56308855]
[1758001328495,0.35110197,116000.0,115990.0,0.56604855]
[1758001329267,0.52351576,116000.0,115990.0,0.42188855]
[1758001329443,0.35110197,116000.0,115990.0,0.56097855]
[1758001330851,0.03934547,116000.0,115990.0,0.56097855]
[1758001331055,0.35110197,116000.0,115990.0,0.56097855]
[1758001332002,0.52351576,116000.0,115990.0,0.53847855]
[1758001332735,0.52351576,116000.0,115990.0,0.56097855]
[1758001332975,0.35110197,116000.0,115990.0,0.56097855]
[1758001333217,0.35110197,116000.0,115990.0,0.53847855]
[1758001333470,0.35110197,116000.0,115990.0,0.56097855]
[1758001335376,0.35110197,116000.0,115990.0,0.56304855]
[1758001336804,0.52657576,116000.0,115990.0,0.53847855]
[1758001336917,0.54128576,116000.0,115990.0,0.53847855]
[1758001337127,0.54128576,116000.0,115990.0,0.39435855]
[1758001337355,0.54128576,116000.0,115990.0,0.53847855]
[1758001337577,0.52351576,116000.0,115990.0,0.56600855]
[1758001338242,0.52351576,116000.0,115990.0,0.56097855]
[1758001341422,0.21175926,116000.0,115990.0,0.56097855]
[1758001341637,0.52351576,116000.0,115990.0,0.56097855]
[1758001342527,0.52351576,116000.0,115990.0,0.41685855]
[1758001342767,0.52351576,116000.0,115990.0,0.56093855]
[1758001345649,0.52351576,116000.0,115990.0,0.2219299]
[1758001345869,0.83833226,116000.0,115990.0,0.3660099]
[1758001346212,0.83833226,116000.0,115990.0,0.53843855]
[1758001346651,0.83527226,116000.0,115990.0,0.53843855]
[1758001347858,0.83527226,116000.0,115990.0,0.56093855]
[1758001348655,0.52351576,116000.0,115990.0,0.56093855]
[1758001349297,0.52351576,116000.0,115990.0,0.56300855]
[1758001349514,0.52351576,116000.0,115990.0,0.56622855]
[1758001351197,0.86351576,116000.0,115990.0,0.56622855]
[1758001354227,0.86358346,116000.0,115990.0,0.56622855]
[1758001354519,0.86358346,116000.0,115990.0,0.56618855]
[1758001355334,0.86358346,116000.0,115990.0,0.56296855]
[1758001355539,0.86358346,116000.0,115990.0,0.56089855]
[1758001356160,0.88145346,116000.0,115990.0,0.2218899]
[1758001356494,1.19320996,116000.0,115990.0,0.53835855]
[1758001357612,0.86358346,116000.0,115990.0,0.53835855]
[1758001357914,0.86358346,116000.0,115990.0,0.56224855]
[1758001358123,0.86358346,116000.0,115990.0,0.53835855]
[1758001358935,0.86674346,116000.0,115990.0,0.53835855]
[1758001360157,0.88145346,116000.0,115990.0,0.39431855]
[1758001360364,0.86674346,116000.0,115990.0,0.53835855]